[Event "WYCC 2018 G18"]
[Site "Halkidiki"]
[Date "2018.10.30"]
[Round "11"]
[White "Hng, Mei-En Emmanuelle"]
[Black "Cosme Contreras, Trilce"]
[Result "1/2-1/2"]
[ECO "E63"]
[WhiteElo "2020"]
[BlackElo "1829"]
[Annotator "NA"]
[PlyCount "69"]
[EventDate "2018.10.20"]
[EventType "swiss"]
[EventCountry "GRE"]
[SourceTitle "playchess.com"]
[Source "ChessBase"]
[SourceQuality "1"]
[TimeControl "40/5400+30:1800+30"]

1. Nf3 {[%emt 0:00:00]} (1. d4 Nf6 2. Nf3 g6 3. c4 Bg7 4. Nc3 O-O 5. g3 d6 6. Bg2 Nc6 7. d5 Na5 8. Qd3 c5 9. O-O a6 10. Re1 Rb8 11. Nd2 b5 12. e4 Ng4 13. cxb5 axb5 14. Nf3 b4 15. Nd1 Qb6 16. h3 Ba6 17. Qc2 Ne5 18. Nxe5 Bxe5 {0-1 (41) Dragasevic,D (2229)-Ostojic,N (2434) Kragujevac 2016}) 1... Nf6 2. g3 {[%emt 0:00:00]} g6 {[%emt 0:00:17]} 3. Bg2 Bg7 {[%emt 0:00:00]} 4. O-O {[%emt 0:00:05]} O-O {[%emt 0:00:22]} 5. c4 {[%emt 0:00:00]} d6 6. d4 Nc6 {[%emt 0:01:06]} 7. Nc3 {[%emt 0:01:19]} a6 {[%emt 0:00:17]} 8. Re1 {[%emt 0:01:41]} Rb8 {[%emt 0:04:31]} 9. d5 {[%emt 0:12:52]} Na5 {[%emt 0:01:06]} 10. Qd3 {[%emt 0:08:22]} c5 {[%emt 0:00:55]} 11. dxc6 {[%emt 0:02:31] E66: King's Indian: Fianchetto: 6...c5 7 0-0 Nc6 8 d5} Nxc6 {[%emt 0:01:12]} 12. a3 $146 {[%emt 0:04:04]} ({Predecessor:} 12. e4 Ng4 13. Bf4 Qb6 14. Re2 Be6 15. Nd5 Bxd5 16. cxd5 Nd4 17. Rd2 Nxf3+ 18. Bxf3 Ne5 19. Bxe5 Bxe5 {0-1 (44) Abel,P (2188)-Kapusta,P (2139) Slovakia 2013}) 12... b5 {[%emt 0:10:37]} 13. cxb5 {[%emt 0:09:45]} axb5 {[%emt 0:00:04]} 14. Nd4 {[%emt 0:00:05]} Nxd4 {[%emt 0:03:18]} 15. Qxd4 {[%emt 0:00:02]} Be6 {[%emt 0:00:53]} 16. Qb4 {[%emt 0:01:05]} Ng4 {[%emt 0:07:51]} 17. h3 {[%emt 0:05:27]} Ne5 {[%emt 0:01:02]} 18. Bf4 {[%emt 0:00:42]} Qd7 {[%emt 0:02:17]} 19. Bxe5 {[%emt 0:07:53]} Bxe5 {[%emt 0:00:07]} 20. Rac1 {[%emt 0:03:01]} Rfc8 {[%emt 0:15:24]} 21. Nd5 {[%emt 0:02:13]} Bxd5 {[%emt 0:03:54]} 22. Bxd5 {[%emt 0:00:16]} Qxh3 {[%emt 0:00:47]} 23. Rxc8+ {[%emt 0:00:44]} Qxc8 {[%emt 0:01:28]} 24. Qd2 {[%emt 0:02:30]} Qf5 {[%emt 0:03:08]} 25. Kg2 {[%emt 0:08:46]} Bxb2 {[%emt 0:02:41]} 26. Bxf7+ {[%emt 0:01:32]} Qxf7 {[%emt 0:00:06]} 27. Qxb2 {[%emt 0:00:05]} e5 {[%emt 0:04:13]} 28. Rd1 {[%emt 0:02:34]} Rb6 {[%emt 0:11:07]} 29. Kg1 $11 {[%emt 0:12:31]} Qc4 {[%emt 0:07:39]} 30. Rc1 {[%emt 0:00:31]} Qd5 {[%emt 0:00:19]} 31. Rc8+ {[%emt 0:00:53]} Kg7 {[%emt 0:00:41]} 32. Rc7+ {[%emt 0:03:38]} Kg8 {[%emt 0:05:52]} 33. Rc8+ {[%emt 0:02:24]} Kg7 {[%emt 0:00:09]} 34. Rc7+ {[%emt 0:00:04]} Kg8 {[%emt 0:00:05]} 35. Rc8+ 1/2-1/2

[Event "WYCC 2018 G18"]
[Site "Halkidiki"]
[Date "2018.10.30"]
[Round "11"]
[White "Bauyrzhan, Arnash"]
[Black "Abeysinghe, H M H Janandani"]
[Result "1-0"]
[ECO "B52"]
[WhiteElo "2011"]
[BlackElo "1698"]
[Annotator "NA"]
[PlyCount "109"]
[EventDate "2018.10.20"]
[EventType "swiss"]
[EventCountry "GRE"]
[SourceTitle "playchess.com"]
[Source "ChessBase"]
[SourceQuality "1"]
[TimeControl "40/5400+30:1800+30"]

1. e4 {[%emt 0:00:00]} c5 {[%emt 0:00:00]} 2. Nf3 {[%emt 0:00:00]} d6 {[%emt 0:00:00]} 3. Bb5+ {[%emt 0:00:20]} Bd7 {[%emt 0:00:27]} 4. Bxd7+ {[%emt 0:00:16]} Qxd7 {[%emt 0:00:08]} 5. c4 {[%emt 0:00:24]} Nf6 {[%emt 0:01:02]} 6. Nc3 {[%emt 0:00:15]} g6 {[%emt 0:00:58]} 7. d4 {[%emt 0:00:51]} cxd4 {[%emt 0:02:50]} 8. Nxd4 {[%emt 0:00:13]} Bg7 {[%emt 0:00:14]} 9. f3 {[%emt 0:01:21]} O-O {[%emt 0:01:02]} 10. Be3 {[%emt 0:00:44]} Nc6 {[%emt 0:00:26]} 11. O-O {[%emt 0:00:58]} a6 {[%emt 0:01:07]} 12. Na4 {[%emt 0:02:22] B52: Sicilian: Moscow Variation with 3...Bd7} Qc7 {[%emt 0:04:10]} (12... Rab8 13. Nxc6 Qxc6 14. Nb6 Nd7 15. Nxd7 Qxd7 16. Rf2 b5 17. c5 Qa7 18. Rc1 dxc5 19. Bxc5 Qc7 {1-0 (50) Caruana,F (2807)-Kasparov,G (2812) Saint Louis 2017}) 13. Nxc6 {[%emt 0:00:31]} Qxc6 {[%emt 0:00:36]} 14. Nb6 {[%emt 0:01:13]} Rad8 {[%emt 0:01:37]} 15. Rc1 {[%emt 0:01:35]} e6 {[%emt 0:04:51] [#]} 16. b3 $146 {[%emt 0:04:53]} ({Predecessor:} 16. a4 Nd7 17. Nd5 Rfe8 18. b4 Bb2 19. Rc2 Be5 {½-½ (40) Paravyan,D (2525)-Donchenko,A (2553) Moscow 2017}) 16... Nd7 {[%emt 0:03:18]} 17. Nxd7 {[%emt 0:01:00]} Rxd7 {[%emt 0:01:02]} 18. Qd2 {[%emt 0:02:45]} Rfd8 {[%emt 0:02:51]} 19. Rfd1 {[%emt 0:01:13]} Bf8 {[%emt 0:03:41]} 20. Qf2 {[%emt 0:00:55]} Be7 {[%emt 0:01:58]} 21. Bd4 {[%emt 0:01:24]} Bf8 {[%emt 0:03:11]} 22. Bb6 {[%emt 0:03:53]} Rc8 {[%emt 0:01:42]} 23. Be3 {[%emt 0:02:04]} Qc7 {[%emt 0:02:24]} 24. f4 {[%emt 0:05:39]} Qd8 {[%emt 0:02:02]} 25. Bb6 {[%emt 0:05:20]} Qe8 {[%emt 0:00:22]} 26. Rc3 {[%emt 0:01:12]} Be7 {[%emt 0:02:36]} 27. Rcd3 {[%emt 0:00:28]} Rc6 {[%emt 0:03:16]} 28. Bd4 {[%emt 0:03:50]} Rdc7 {[%emt 0:02:32]} 29. Bb2 {[%emt 0:03:25]} Qf8 {[%emt 0:06:27]} 30. f5 {[%emt 0:03:48]} Rd7 {[%emt 0:06:08]} 31. fxe6 {[%emt 0:02:48]} fxe6 {[%emt 0:00:42]} 32. Rf3 {[%emt 0:00:13]} Qe8 {[%emt 0:00:55]} 33. Qd4 $18 {[%emt 0:00:26]} e5 {[%emt 0:02:04]} 34. Qd5+ {[%emt 0:00:08]} Kh8 {[%emt 0:01:01]} 35. Bxe5+ {[%emt 0:00:55]} dxe5 {[%emt 0:00:26]} 36. Qxd7 {[%emt 0:00:07]} Qxd7 {[%emt 0:00:26]} 37. Rxd7 {[%emt 0:00:06]} Bc5+ {[%emt 0:01:06]} 38. Kf1 {[%emt 0:00:08]} b5 {[%emt 0:00:28]} 39. Rff7 {[%emt 0:00:18]} Kg8 {[%emt 0:00:56]} 40. Rg7+ {[%emt 0:00:00]} Kf8 {[%emt 0:00:00]} 41. Rxh7 {[%emt 0:00:34]} Kg8 {[%emt 0:00:24]} 42. Rhg7+ {[%emt 0:00:47]} Kf8 {[%emt 0:00:08]} 43. Rgf7+ {[%emt 0:00:13]} Ke8 {[%emt 0:00:10]} 44. Rc7 {[%emt 0:00:12]} Rxc7 {[%emt 0:00:09]} 45. Rxc7 {[%emt 0:00:06]} Be7 {[%emt 0:00:20]} 46. cxb5 {[%emt 0:00:10]} axb5 {[%emt 0:00:07]} 47. a4 {[%emt 0:00:05]} bxa4 {[%emt 0:00:12]} 48. bxa4 {[%emt 0:00:05]} Kd8 {[%emt 0:00:04]} 49. Rb7 {[%emt 0:00:11]} g5 {[%emt 0:01:09]} 50. a5 {[%emt 0:00:06]} Bc5 {[%emt 0:00:07]} 51. a6 {[%emt 0:00:07]} Kc8 {[%emt 0:00:06]} 52. Ke2 {[%emt 0:00:13]} Bd4 {[%emt 0:00:16]} 53. Kd3 {[%emt 0:00:06]} Bc5 {[%emt 0:00:20]} 54. Kc4 {[%emt 0:00:06]} Bd4 {[%emt 0:00:06]} 55. Kd5 {[%emt 0:00:09]} 1-0

[Event "WYCC 2018 G18"]
[Site "Halkidiki"]
[Date "2018.10.30"]
[Round "11"]
[White "Li, Yilin"]
[Black "Ni Mhuireagain, Eibhia"]
[Result "1-0"]
[ECO "D15"]
[WhiteElo "1993"]
[BlackElo "1655"]
[Annotator "NA"]
[PlyCount "99"]
[EventDate "2018.10.20"]
[EventType "swiss"]
[EventCountry "GRE"]
[SourceTitle "playchess.com"]
[Source "ChessBase"]
[SourceQuality "1"]
[TimeControl "40/5400+30:1800+30"]

1. c4 {[%emt 0:00:00]} c6 {[%emt 0:00:27]} 2. d4 {[%emt 0:00:00]} d5 {[%emt 0:00:13]} 3. Nc3 {[%emt 0:00:06]} Nf6 {[%emt 0:00:08]} 4. Nf3 {[%emt 0:00:12]} Bf5 {[%emt 0:00:13]} 5. e3 {[%emt 0:01:10]} e6 {[%emt 0:00:13]} 6. h3 {[%emt 0:01:18]} h6 {[%emt 0:02:50]} 7. Be2 {[%emt 0:04:28]} Bd6 {[%emt 0:01:59]} 8. c5 {[%emt 0:02:10]} Bc7 {[%emt 0:00:55]} 9. O-O $11 {[%emt 0:00:09]} Nbd7 {[%emt 0:00:31]} 10. b4 {[%emt 0:03:27]} O-O {[%emt 0:02:28]} 11. a4 {[%emt 0:02:45]} e5 {[%emt 0:03:54]} 12. b5 {[%emt 0:06:11]} e4 {[%emt 0:05:11]} 13. Ne1 {[%emt 0:02:43]} Nh7 {[%emt 0:01:56]} 14. Bg4 {[%emt 0:01:28]} Bg6 {[%emt 0:11:42]} 15. Bh5 {[%emt 0:00:27]} Qg5 {[%emt 0:02:09]} 16. Bxg6 {[%emt 0:00:48]} Qxg6 {[%emt 0:00:21]} 17. Qg4 {[%emt 0:00:17]} Qxg4 {[%emt 0:00:29]} 18. hxg4 {[%emt 0:00:02]} Ndf6 {[%emt 0:03:32]} 19. f3 {[%emt 0:02:09]} Ng5 {[%emt 0:02:11]} 20. Nc2 {[%emt 0:01:32]} Ba5 {[%emt 0:06:19]} 21. Bd2 {[%emt 0:01:50]} Rac8 {[%emt 0:02:04]} 22. Nxe4 {[%emt 0:01:26]} Bxd2 {[%emt 0:02:42]} 23. Nxd2 {[%emt 0:00:03]} b6 {[%emt 0:03:29]} 24. Nb3 {[%emt 0:01:45]} Nd7 {[%emt 0:00:56]} 25. bxc6 {[%emt 0:00:46]} Rxc6 {[%emt 0:00:09]} 26. Nb4 {[%emt 0:00:04]} Re6 {[%emt 0:01:16]} 27. Nxd5 {[%emt 0:00:16]} bxc5 {[%emt 0:00:39]} 28. Nxc5 {[%emt 0:01:05]} Rd6 {[%emt 0:01:22]} 29. Ne7+ {[%emt 0:00:44]} Kh8 {[%emt 0:00:35]} 30. Nf5 {[%emt 0:00:07]} Rd5 {[%emt 0:02:58]} 31. e4 {[%emt 0:00:08]} Rxc5 {[%emt 0:00:25]} 32. dxc5 {[%emt 0:00:03]} Nxc5 {[%emt 0:00:08]} 33. Rfd1 {[%emt 0:00:57]} Rb8 {[%emt 0:02:07]} 34. Rd5 {[%emt 0:00:11]} Nce6 {[%emt 0:00:36]} 35. Ra2 {[%emt 0:01:25]} f6 {[%emt 0:04:39]} 36. Rd7 {[%emt 0:00:36]} a6 {[%emt 0:02:51]} 37. Rd6 {[%emt 0:01:15]} Nc5 {[%emt 0:01:13]} 38. Rc6 {[%emt 0:01:08]} Nge6 {[%emt 0:00:25]} 39. a5 {[%emt 0:02:10]} Kh7 {[%emt 0:04:20]} 40. Kh2 {[%emt 0:00:00]} Kg6 {[%emt 0:00:00]} 41. Rb6 {[%emt 0:06:45]} Rd8 {[%emt 0:04:35]} 42. Ne7+ {[%emt 0:00:05]} Kf7 {[%emt 0:02:14]} 43. Nd5 {[%emt 0:00:03]} Rh8 {[%emt 0:01:39]} 44. Nb4 {[%emt 0:00:58]} Ra8 {[%emt 0:02:47]} 45. Rd2 {[%emt 0:01:43]} Nd8 {[%emt 0:04:07]} 46. Kg3 {[%emt 0:01:48]} Ke8 {[%emt 0:01:44]} 47. Rd5 {[%emt 0:06:30]} Ndb7 {[%emt 0:02:23]} 48. Nd3 {[%emt 0:02:40]} Nxd3 {[%emt 0:01:02]} 49. Rxb7 {[%emt 0:00:11]} Ne5 {[%emt 0:00:26]} 50. Rxg7 {[%emt 0:00:23]} 1-0

[Event "WYCC 2018 G18"]
[Site "Halkidiki"]
[Date "2018.10.30"]
[Round "11"]
[White "Hamedi Nia, Vesal"]
[Black "Tsivelekidou, Evgenia"]
[Result "1/2-1/2"]
[ECO "A56"]
[WhiteElo "1987"]
[BlackElo "1891"]
[Annotator "NA"]
[PlyCount "85"]
[EventDate "2018.10.20"]
[EventType "swiss"]
[EventCountry "GRE"]
[SourceTitle "playchess.com"]
[Source "ChessBase"]
[SourceQuality "1"]
[TimeControl "40/5400+30:1800+30"]

1. d4 {[%emt 0:00:00]} Nf6 {[%emt 0:00:00]} 2. c4 {[%emt 0:00:00]} c5 {[%emt 0:00:00]} 3. d5 {[%emt 0:00:00]} e5 {[%emt 0:00:00]} 4. Nc3 {[%emt 0:01:58]} d6 {[%emt 0:00:00]} 5. Qc2 {[%emt 0:06:38] A56: Czech Benoni} (5. e4 Nbd7 6. Bd3 Be7 7. Nge2 g6 8. O-O Nh5 9. Be3 O-O 10. Qd2 Ng7 11. Bh6 Nf6 12. h3 Kh8 13. Kh1 Ng8 14. Be3 Bd7 15. a3 {½-½ (102) Giri,A (2782)-Aronian,L (2767) chess.com INT 2018}) 5... Be7 {[%emt 0:01:21]} 6. h3 {[%emt 0:00:42]} O-O $146 {[%emt 0:01:45]} ({Predecessor:} 6... Nbd7 7. Nf3 Nf8 8. e3 Bd7 9. Be2 a6 10. a3 b5 11. b3 Qc8 12. Bd3 Ng6 {0-1 (25) Froehling,J (1518)-Karrer,P (1822) Winterthur 2002}) 7. Nf3 {[%emt 0:00:17]} Ne8 {[%emt 0:01:23]} 8. e4 {[%emt 0:03:18]} g6 {[%emt 0:03:13]} 9. Bh6 {[%emt 0:13:39]} Ng7 {[%emt 0:00:07]} 10. g4 {[%emt 0:01:28]} Nd7 {[%emt 0:02:32]} 11. Bd3 {[%emt 0:02:46]} Nf6 {[%emt 0:02:54]} 12. O-O-O {[%emt 0:02:09]} a6 {[%emt 0:01:47]} 13. Nd2 {[%emt 0:05:47]} Bd7 {[%emt 0:07:44]} 14. f4 {[%emt 0:04:23]} exf4 {[%emt 0:02:51]} 15. Bxf4 {[%emt 0:00:22]} b5 {[%emt 0:07:51]} 16. e5 {[%emt 0:02:09]} dxe5 {[%emt 0:11:18]} 17. Bxe5 {[%emt 0:02:15]} Nfe8 {[%emt 0:04:45]} 18. Nce4 {[%emt 0:07:29]} f6 {[%emt 0:02:57]} 19. Bh2 {[%emt 0:06:26]} Qb6 {[%emt 0:02:12]} 20. Rde1 {[%emt 0:05:01]} f5 {[%emt 0:04:14]} 21. gxf5 {[%emt 0:07:32]} Nxf5 {[%emt 0:01:55]} 22. Nf3 {[%emt 0:03:09]} bxc4 {[%emt 0:07:33]} 23. Bxc4 {[%emt 0:00:35]} Ned6 {[%emt 0:02:35]} 24. Nxd6 {[%emt 0:00:59]} Bxd6 {[%emt 0:00:24]} 25. Ne5 {[%emt 0:01:03]} Bb5 {[%emt 0:05:37]} 26. Rhg1 {[%emt 0:03:30]} Ra7 {[%emt 0:08:32]} 27. a4 {[%emt 0:11:49]} Be8 {[%emt 0:01:33]} 28. Nc6 {[%emt 0:00:59]} Rg7 {[%emt 0:01:58]} 29. Re6 {[%emt 0:01:32]} Qc7 {[%emt 0:03:40]} 30. Bxd6 {[%emt 0:01:09]} Nxd6 {[%emt 0:00:12]} 31. Rge1 {[%emt 0:01:35]} Bd7 {[%emt 0:03:24]} 32. Re7 {[%emt 0:00:53]} Nxc4 {[%emt 0:03:37]} 33. Qxc4 {[%emt 0:04:19]} Qf4+ {[%emt 0:00:44]} 34. Qxf4 {[%emt 0:00:26]} Rxf4 {[%emt 0:00:05]} 35. a5 {[%emt 0:00:37]} Rxe7 36. Rxe7 {[%emt 0:00:19]} Rf7 {[%emt 0:03:43]} 37. Re5 {[%emt 0:00:42]} Bxh3 {[%emt 0:00:47]} 38. d6 {[%emt 0:00:33]} Rd7 {[%emt 0:01:31]} 39. Re8+ {[%emt 0:00:28]} Kg7 {[%emt 0:01:42]} 40. Ra8 {[%emt 0:00:00]} Rxd6 {[%emt 0:00:00]} 41. Rxa6 {[%emt 0:00:39]} Bg2 $19 {[%emt 0:05:14]} 42. Ra7+ {[%emt 0:02:13]} Kf6 {[%emt 0:02:20]} 43. Nb8 1/2-1/2

[Event "WYCC 2018 G18"]
[Site "Halkidiki"]
[Date "2018.10.30"]
[Round "11"]
[White "Nass, Sara"]
[Black "Perry, Tal"]
[Result "0-1"]
[ECO "C80"]
[WhiteElo "1986"]
[BlackElo "1702"]
[Annotator "NA"]
[PlyCount "118"]
[EventDate "2018.10.20"]
[EventType "swiss"]
[EventCountry "GRE"]
[SourceTitle "playchess.com"]
[Source "ChessBase"]
[SourceQuality "1"]
[TimeControl "40/5400+30:1800+30"]

1. e4 {[%emt 0:00:00]} e5 {[%emt 0:00:00]} 2. Nf3 {[%emt 0:00:00]} Nc6 {[%emt 0:00:00]} 3. Bb5 {[%emt 0:00:00]} a6 {[%emt 0:00:00]} 4. Ba4 {[%emt 0:00:00]} Nf6 {[%emt 0:00:00]} 5. O-O {[%emt 0:00:05]} Nxe4 {[%emt 0:00:04]} 6. d4 {[%emt 0:00:50]} b5 {[%emt 0:00:11]} 7. Bb3 {[%emt 0:04:37]} d5 {[%emt 0:00:08]} 8. Nxe5 {[%emt 0:23:26]} Nxe5 {[%emt 0:00:49]} 9. dxe5 {[%emt 0:00:06]} Be6 {[%emt 0:00:20]} 10. Nd2 {[%emt 0:08:55] C80: Open Ruy Lopez: Sidelines and 9 Nbd2} (10. Be3 Be7 11. c3 O-O 12. f3 Nc5 13. Bc2 Nd7 14. f4 f5 15. Nd2 c5 16. Nf3 Nb6 17. Bf2 Rb8 {1-0 (29) Piorun,K (2653)-Lomasov,S (2551) Batumi 2018}) 10... Nc5 {[%emt 0:01:45]} 11. f4 {[%emt 0:02:32]} g6 {[%emt 0:01:39]} 12. c3 $146 {[%emt 0:05:12]} ({Predecessor:} 12. Nf3 Ne4 13. Nd4 c5 14. f5 cxd4 15. fxe6 fxe6 16. Kh1 Qh4 17. Qf3 Be7 18. Bxd5 exd5 {1-0 (32) Salazar,A (1914)-Montoya,C (2177) Medellin 2008}) 12... Bg7 {[%emt 0:09:24]} 13. Nf3 {[%emt 0:04:25]} Nxb3 {[%emt 0:02:05]} 14. axb3 {[%emt 0:00:10]} c5 {[%emt 0:01:46]} 15. Be3 {[%emt 0:01:37]} Qe7 {[%emt 0:01:56]} 16. Qe2 {[%emt 0:07:12]} O-O {[%emt 0:00:24]} 17. Qf2 {[%emt 0:00:13]} Rfc8 {[%emt 0:01:09]} 18. Ra5 {[%emt 0:05:25]} Bf8 {[%emt 0:11:43]} 19. Rfa1 {[%emt 0:01:54]} Qb7 {[%emt 0:01:09]} 20. Ng5 {[%emt 0:06:26]} Bf5 {[%emt 0:06:56]} 21. Qh4 {[%emt 0:11:52]} h6 {[%emt 0:00:48]} 22. Nf3 {[%emt 0:00:27]} Be4 {[%emt 0:05:52]} 23. f5 {[%emt 0:07:07]} Bxf3 {[%emt 0:02:08]} 24. gxf3 {[%emt 0:00:14]} d4 {[%emt 0:04:14]} 25. Bxh6 {[%emt 0:00:51]} Qxf3 {[%emt 0:01:21]} 26. Rf1 {[%emt 0:01:14]} Qd3 {[%emt 0:08:40]} 27. Bxf8 {[%emt 0:02:42]} Rxf8 {[%emt 0:02:10]} 28. f6 {[%emt 0:01:57]} Qe3+ {[%emt 0:00:27]} 29. Kg2 {[%emt 0:03:47]} Rfe8 {[%emt 0:08:26]} 30. Qf4 {[%emt 0:01:01]} Rxe5 {[%emt 0:01:37]} 31. Qxe3 {[%emt 0:00:27]} Rxe3 {[%emt 0:00:54]} 32. cxd4 {[%emt 0:00:30]} cxd4 {[%emt 0:00:13]} 33. Rd1 {[%emt 0:00:43]} Rd8 {[%emt 0:01:36]} 34. Rxa6 {[%emt 0:00:15]} d3 {[%emt 0:03:07]} 35. Ra7 {[%emt 0:00:28]} Re2+ {[%emt 0:00:41]} 36. Kf3 {[%emt 0:00:34]} Rxb2 {[%emt 0:01:00]} 37. Ke3 {[%emt 0:00:11]} Rxb3 {[%emt 0:04:29]} 38. Rd2 {[%emt 0:00:07]} b4 {[%emt 0:03:37]} 39. Rb7 {[%emt 0:00:11]} Rd6 {[%emt 0:02:12]} 40. Rb8+ {[%emt 0:00:00]} Kh7 {[%emt 0:00:00]} 41. Rb7 {[%emt 0:01:27]} Rxf6 {[%emt 0:00:21]} 42. Rxd3 {[%emt 0:00:24]} Re6+ {[%emt 0:03:50]} 43. Kd2 {[%emt 0:00:40]} Rb2+ {[%emt 0:02:33]} 44. Kc1 {[%emt 0:01:30]} Ra2 {[%emt 0:03:35]} 45. Rxf7+ {[%emt 0:01:56]} Kg8 {[%emt 0:02:16]} 46. Kb1 {[%emt 0:01:36]} Rxh2 {[%emt 0:00:18]} 47. Rf1 {[%emt 0:00:15]} Ree2 {[%emt 0:06:48]} 48. Rd7 {[%emt 0:01:30]} Rb2+ {[%emt 0:01:01]} 49. Kc1 {[%emt 0:01:06]} Rhc2+ {[%emt 0:00:27]} 50. Kd1 {[%emt 0:00:13]} Rb1+ {[%emt 0:05:30]} 51. Kxc2 {[%emt 0:02:02]} Rxf1 {[%emt 0:00:02]} 52. Rb7 {[%emt 0:00:56]} Rf4 {[%emt 0:00:42]} 53. Kd2 {[%emt 0:01:33]} g5 {[%emt 0:01:03]} 54. Ke3 {[%emt 0:00:15]} Rc4 {[%emt 0:04:08]} 55. Kf3 {[%emt 0:00:49]} g4+ {[%emt 0:01:44]} 56. Kg3 {[%emt 0:00:27]} Kf8 {[%emt 0:00:47]} 57. Kf2 {[%emt 0:02:50]} Re4 {[%emt 0:01:39]} 58. Kg3 {[%emt 0:00:58]} Ke8 {[%emt 0:00:40]} 59. Rg7 $19 {[%emt 0:00:25]} Kd8 {[%emt 0:01:40]} 0-1

[Event "WYCC 2018 G18"]
[Site "Halkidiki"]
[Date "2018.10.30"]
[Round "11"]
[White "Caballero Quijano, Mitzy Mishell"]
[Black "Salimova, Asal"]
[Result "1-0"]
[ECO "A41"]
[WhiteElo "1956"]
[BlackElo "1870"]
[Annotator "NA"]
[PlyCount "147"]
[EventDate "2018.10.20"]
[EventType "swiss"]
[EventCountry "GRE"]
[SourceTitle "playchess.com"]
[Source "ChessBase"]
[SourceQuality "1"]
[TimeControl "40/5400+30:1800+30"]

1. d4 {[%emt 0:02:21]} d6 {[%emt 0:00:00]} 2. Nf3 {[%emt 0:00:31]} g6 {[%emt 0:00:00]} 3. c4 {[%emt 0:00:04]} Bg7 {[%emt 0:00:00]} 4. g3 {[%emt 0:00:03]} Nd7 {[%emt 0:00:00]} 5. Bg2 {[%emt 0:00:18]} e5 {[%emt 0:00:00]} 6. Nc3 {[%emt 0:00:20]} Ne7 {[%emt 0:00:10]} 7. O-O {[%emt 0:00:22]} O-O {[%emt 0:00:05]} 8. dxe5 {[%emt 0:00:11]} dxe5 {[%emt 0:00:11] A41: 1 d4 d6: Tartakower System and Modern Defence} 9. Qc2 {[%emt 0:00:21]} (9. e4 Nc6 10. Bg5 f6 11. Be3 Nb6 12. b3 Bg4 13. Qxd8 Raxd8 14. Nd5 Rd7 15. h3 Bxf3 16. Bxf3 Nd4 17. Bxd4 exd4 {1-0 (52) Tregubov,P (2585)-Jumabayev,R (2611) Doha 2016}) 9... c6 {[%emt 0:01:21]} 10. Rd1 {[%emt 0:00:43]} Qc7 {[%emt 0:00:13]} 11. Ne4 {[%emt 0:01:19]} Nf6 {[%emt 0:02:12]} 12. Nd6 {[%emt 0:04:27]} Bf5 {[%emt 0:09:22]} 13. e4 $146 {[%emt 0:03:44]} ({Predecessor:} 13. Nxf5 Nxf5 14. e4 Ne7 15. c5 Rad8 16. Rxd8 Rxd8 {1-0 (31) Bispo,L (2158)-Crosa Coll,M (2382) Santos 2010}) 13... Bg4 {[%emt 0:00:09]} 14. c5 {[%emt 0:00:54]} Rad8 {[%emt 0:01:43]} 15. b3 {[%emt 0:11:14]} Ne8 {[%emt 0:05:37]} 16. Ba3 {[%emt 0:00:21]} Nc8 {[%emt 0:06:15]} 17. Nc4 {[%emt 0:01:01]} Qe7 {[%emt 0:05:51]} 18. Rxd8 {[%emt 0:02:11]} Qxd8 {[%emt 0:00:04]} 19. Nfxe5 {[%emt 0:01:15]} Qe7 {[%emt 0:04:29]} 20. Bb2 {[%emt 0:00:28]} Be6 {[%emt 0:00:30]} 21. b4 {[%emt 0:01:26]} Nc7 {[%emt 0:00:45]} 22. Nd3 {[%emt 0:05:40]} Rd8 {[%emt 0:01:10]} 23. Bxg7 {[%emt 0:00:11]} Kxg7 {[%emt 0:00:09]} 24. Ndb2 {[%emt 0:05:27]} Nb5 {[%emt 0:00:44]} 25. Re1 {[%emt 0:00:32]} Nd4 {[%emt 0:05:20]} 26. Qc3 {[%emt 0:00:31]} Kg8 {[%emt 0:00:10]} 27. a4 {[%emt 0:00:43]} b6 {[%emt 0:04:48]} 28. cxb6 {[%emt 0:04:08]} axb6 {[%emt 0:00:40]} 29. Ne3 {[%emt 0:03:22]} Qf6 {[%emt 0:00:46]} 30. Kf1 {[%emt 0:01:58]} c5 {[%emt 0:07:20]} 31. bxc5 {[%emt 0:00:49]} bxc5 {[%emt 0:00:04]} 32. Nd3 $18 {[%emt 0:03:07]} ({Don't do} 32. Qxc5 $6 Nb3 $16) 32... c4 {[%emt 0:03:59]} 33. e5 {[%emt 0:01:07]} Qg5 {[%emt 0:01:20]} 34. Nxc4 {[%emt 0:02:07]} Bxc4 {[%emt 0:05:07]} 35. Qxc4 {[%emt 0:00:06]} Qd2 {[%emt 0:00:30]} 36. Be4 {[%emt 0:03:44]} Kg7 {[%emt 0:06:01]} 37. Nf4 {[%emt 0:01:16]} Re8 {[%emt 0:05:39]} 38. Qc7 {[%emt 0:04:20]} Qb4 {[%emt 0:09:33]} 39. a5 {[%emt 0:01:33]} Ne7 {[%emt 0:01:33]} 40. a6 {[%emt 0:00:00]} Qb5+ {[%emt 0:00:00]} 41. Bd3 {[%emt 0:01:41]} Qc6 {[%emt 0:06:43]} 42. Qxc6 {[%emt 0:00:09]} Nexc6 {[%emt 0:00:05]} 43. Be4 {[%emt 0:10:45]} Rxe5 {[%emt 0:01:31]} 44. Bxc6 {[%emt 0:00:13]} Rxe1+ {[%emt 0:00:07]} 45. Kxe1 {[%emt 0:00:05]} Nxc6 {[%emt 0:00:02]} 46. Nd5 {[%emt 0:00:57]} f5 {[%emt 0:01:17]} 47. Kd2 {[%emt 0:00:06]} Kf7 {[%emt 0:00:37]} 48. Kc3 {[%emt 0:00:06]} Ke6 {[%emt 0:00:21]} 49. Nc7+ {[%emt 0:00:34]} Kd7 {[%emt 0:00:14]} 50. Nb5 {[%emt 0:00:05]} Kc8 {[%emt 0:00:06]} 51. Kc4 {[%emt 0:02:07]} Ne5+ {[%emt 0:01:21]} 52. Kc5 {[%emt 0:00:08]} g5 {[%emt 0:02:44]} 53. Nd6+ {[%emt 0:07:34]} Kb8 {[%emt 0:00:04]} 54. Nxf5 {[%emt 0:00:06]} Ka7 {[%emt 0:00:12]} 55. Kd4 {[%emt 0:00:30]} Ng4 {[%emt 0:00:31]} 56. f3 {[%emt 0:00:24]} Nxh2 {[%emt 0:00:08]} 57. Ke3 {[%emt 0:00:06]} h5 {[%emt 0:03:01]} 58. Ng7 {[%emt 0:10:19]} h4 {[%emt 0:02:11]} 59. g4 {[%emt 0:00:06]} Nf1+ {[%emt 0:00:17]} 60. Kf2 {[%emt 0:00:13]} Nd2 {[%emt 0:00:10]} 61. Ne6 {[%emt 0:00:11]} Kxa6 {[%emt 0:01:14]} 62. Nxg5 {[%emt 0:00:07]} Kb7 {[%emt 0:00:03]} 63. Ne4 {[%emt 0:01:26]} Nc4 {[%emt 0:00:38]} 64. g5 {[%emt 0:00:12]} Ne5 {[%emt 0:01:40]} 65. f4 {[%emt 0:00:12]} Ng6 {[%emt 0:00:23]} 66. f5 {[%emt 0:00:08]} Ne7 {[%emt 0:00:17]} 67. f6 {[%emt 0:02:18]} Ng6 {[%emt 0:00:04]} 68. Kf3 {[%emt 0:00:05]} Kc6 {[%emt 0:00:18]} 69. Kg4 {[%emt 0:00:06]} Kd5 {[%emt 0:01:49]} 70. Kf5 {[%emt 0:01:11]} h3 {[%emt 0:02:24]} 71. Kxg6 {[%emt 0:00:11]} Kxe4 {[%emt 0:00:03]} 72. f7 {[%emt 0:00:06]} h2 {[%emt 0:00:07]} 73. f8=Q {[%emt 0:00:07]} h1=Q {[%emt 0:00:15]} 74. Qa8+ {[%emt 0:00:07] Kd5} 1-0

[Event "WYCC 2018 G18"]
[Site "Halkidiki"]
[Date "2018.10.30"]
[Round "11"]
[White "Golsta, Madara"]
[Black "Hunt, Fikirte"]
[Result "0-1"]
[ECO "A16"]
[WhiteElo "1938"]
[BlackElo "1827"]
[Annotator "NA"]
[PlyCount "68"]
[EventDate "2018.10.20"]
[EventType "swiss"]
[EventCountry "GRE"]
[SourceTitle "playchess.com"]
[Source "ChessBase"]
[SourceQuality "1"]
[TimeControl "40/5400+30:1800+30"]

1. c4 Nf6 2. Nc3 d5 3. cxd5 Nxd5 4. Nf3 g6 5. Qa4+ Nc6 6. Ne5 Ndb4 7. a3 Nc2+ {A16: English Opening: 1...Nf6 with ...d5} 8. Qxc2 Nxe5 9. d4 Nd7 10. Bf4 c6 11. e3 $146 ({Predecessor:} 11. Rd1 Bg7 12. g3 O-O 13. Bg2 Qa5 14. O-O e5 15. dxe5 Nxe5 {1-0 (59) Kortschnoj,V (2610)-Berkes,F (2597) Paks 2007}) 11... Bg7 12. Be2 O-O 13. h4 e5 14. dxe5 Nxe5 15. Bg5 Qb6 16. h5 Be6 17. hxg6 hxg6 18. f3 Rac8 19. g4 Bd5 20. Rh3 Rfe8 21. Kf2 Qc5 22. Rc1 Bxf3 23. Bxf3 Nxf3 24. Bf4 Ne5 25. Kg3 Rcd8 26. b4 $19 Qe7 27. Rch1 Nd3 28. Qh2 Qf6 29. Ne2 Nxf4 30. exf4 Rd3+ 31. Kf2 Rxh3 32. Qxh3 Qb2 33. Qd3 Bd4+ 34. Kf1 Re3 0-1